bitfinex/quotes_SOLUSD_20241031
["timestamp","ask_amount","ask_price","bid_price","bid_amount"]
[1730376227700,15.8590083,175.04,175.0,22.2049]
[1730376228020,15.8590083,175.03,175.0,22.2049]
[1730376228328,15.8590083,175.02,175.0,22.2049]
[1730376228505,15.8590083,175.03,175.0,22.2049]
[1730376229305,0.25098,175.08,175.0,6.0899]
[1730376229511,15.8590083,175.01,175.0,6.0899]
[1730376229710,15.8590083,175.02,175.0,6.0899]
[1730376231019,15.8590083,175.03,175.0,6.0899]
[1730376231219,15.8590083,175.01,175.0,6.0899]
[1730376231532,15.8590083,175.01,175.0,11.8041]
[1730376231931,15.8590083,175.03,175.0,26.0898]
[1730376232310,15.8590083,175.02,175.0,26.0898]
[1730376235518,15.8590083,175.01,175.0,26.0898]
[1730376236207,15.8590083,175.02,175.0,26.0898]
[1730376236631,15.8590083,175.01,175.0,19.9999]
[1730376237230,15.8590083,175.01,175.0,14.2857]
[1730376238640,15.8590083,175.01,174.99,0.85636073]
[1730376238818,15.8590083,175.0,174.99,0.85636073]
[1730376240911,15.8590083,175.0,174.99,6.57096073]
[1730376246419,10.28829968,175.0,174.99,0.85636073]
[1730376252842,16.12798968,175.0,174.99,0.85636073]
[1730376253349,28.79966145,175.0,174.99,0.85636073]
[1730376254642,0.25098,174.99,174.92,26.6487]
[1730376254853,10.16280968,174.93,174.92,26.6487]
[1730376255643,10.16280968,174.94,174.92,26.6487]
[1730376256134,10.16280968,174.96,174.92,26.6487]
[1730376256540,10.16280968,174.95,174.92,26.6487]
[1730376263048,10.16280968,174.96,174.92,26.6487]
[1730376263743,10.16280968,174.93,174.92,20.0083]
[1730376269470,10.16280968,174.96,174.92,20.0083]
[1730376270046,10.16280968,174.95,174.92,20.0083]
[1730376270759,10.16280968,174.94,174.92,20.0083]
[1730376271150,10.16280968,174.95,174.92,20.0083]
[1730376273071,10.16280968,174.93,174.92,20.0083]
[1730376278368,10.16280968,174.95,174.92,20.0083]
[1730376278682,0.12549,174.99,174.92,20.0083]
[1730376278683,10.16280968,174.93,174.92,20.0083]
[1730376290960,10.16280968,174.94,174.92,20.0083]
[1730376292275,10.16280968,174.93,174.92,20.0083]
[1730376296686,0.12549,174.92,174.91,0.85724614]
[1730376296890,10.28829968,174.92,174.91,0.85724614]
[1730376319693,10.16280968,174.93,174.91,6.57444614]
[1730376319898,10.16280968,174.92,174.91,0.85724614]
[1730376320798,10.28829968,174.92,174.91,0.85724614]
[1730376324212,5.7168,174.93,174.91,20.86744614]
[1730376324213,10.16280968,174.93,174.91,20.86744614]
[1730376324418,10.16280968,174.92,174.91,20.86744614]
[1730376324580,10.16280968,174.92,174.91,0.85724614]
[1730376324784,10.28829968,174.92,174.91,0.85724614]
[1730376330210,16.13058968,174.92,174.91,0.85724614]
[1730376332408,0.25098,174.91,174.86,5.7187]
[1730376332620,10.16280968,174.87,174.86,5.7187]
[1730376335006,10.28829968,174.87,174.85,20.3206]
[1730376335216,10.16280968,174.86,174.85,26.0397]
[1730376335396,10.16280968,174.86,174.85,6.0228]
[1730376336317,10.28829968,174.86,174.85,6.0228]
[1730376337425,10.16280968,174.86,174.85,11.7419]
[1730376338812,10.28829968,174.86,174.85,11.7419]
[1730376340029,10.28829968,174.86,174.83,5.7196]
[1730376340223,10.28829968,174.86,174.83,20.0192]
[1730376340402,10.16280968,174.84,174.83,20.0192]
[1730376341117,10.16280968,174.85,174.83,20.0192]
[1730376342106,10.16280968,174.85,174.83,14.2996]
[1730376343796,10.16280968,174.84,174.83,14.2996]
[1730376344725,10.16280968,174.85,174.83,14.2996]
[1730376346615,10.16280968,174.84,174.83,14.2996]
[1730376349327,10.16280968,174.85,174.83,14.2996]
[1730376353223,10.16280968,174.84,174.83,14.2996]
[1730376362847,0.12549,174.83,174.81,11.7933]
[1730376363135,10.16280968,174.82,174.81,11.7933]
[1730376363928,0.12549,174.81,174.8,0.85763096]
[1730376364133,10.28829968,174.81,174.8,0.85763096]
[1730376365132,16.13418968,174.81,174.8,0.85763096]
[1730376365334,26.15683502,174.81,174.8,0.85763096]
[1730376373737,0.12549,174.8,174.75,0.5931989]
[1730376373949,10.28829968,174.76,174.75,0.5931989]
[1730376375347,10.41378968,174.76,174.75,0.5931989]
[1730376375734,28.80756145,174.76,174.75,0.5931989]
[1730376378462,12.92265177,174.75,174.67,12.2868]
[1730376378642,10.16280968,174.68,174.67,6.5618]
[1730376379147,10.28829968,174.68,174.64,0.03812593]
[1730376379351,0.12549,174.67,174.65,5.7257]
[1730376379650,10.16280968,174.66,174.65,5.7257]
[1730376379830,10.16280968,174.66,174.65,14.3137]
[1730376380234,10.16280968,174.66,174.64,5.76412593]
[1730376380455,10.16280968,174.65,174.64,5.76412593]
[1730376380857,10.16280968,174.66,174.64,20.07922593]
[1730376381061,10.16280968,174.7,174.65,10.16280968]
[1730376381231,10.16280968,174.69,174.64,30.24203561]
[1730376381553,10.16280968,174.69,174.65,23.776884]
[1730376381732,10.16280968,174.7,174.65,33.93969368]
[1730376382133,10.16280968,174.7,174.66,5.7254]
[1730376383433,10.16280968,174.7,174.66,20.0389]
[1730376384643,10.16280968,174.69,174.66,20.0389]
[1730376386939,10.16280968,174.68,174.66,20.0389]
[1730376387863,10.16280968,174.68,174.66,14.3135]
[1730376388442,0.12549,174.67,174.66,14.3135]
[1730376388855,10.28829968,174.67,174.66,14.3135]
[1730376394456,10.41378968,174.67,174.66,14.3135]
[1730376394664,10.41378968,174.67,174.65,5.7257]
[1730376394850,10.16280968,174.66,174.65,5.7257]
[1730376395252,10.28829968,174.66,174.65,5.7257]
[1730376396766,0.12549,174.66,174.65,5.7257]
[1730376397969,10.28829968,174.66,174.65,5.7257]
[1730376398269,0.12549,174.66,174.65,5.7257]
[1730376399039,10.41378968,174.66,174.64,0.89663897]
[1730376399374,10.28829968,174.65,174.64,6.62233897]
[1730376400870,10.28829968,174.65,174.64,0.89663897]
[1730376401766,10.41378968,174.65,174.64,0.03812593]
[1730376402267,16.13948968,174.65,174.64,0.03812593]
[1730376405558,16.23948968,174.65,174.64,0.03812593]
[1730376407451,46.4741544,174.65,174.64,0.03812593]
[1730376407657,46.4741544,174.65,174.58,0.5931989]
[1730376407658,10.41378968,174.59,174.58,0.5931989]
[1730376409657,16.14148968,174.59,174.58,0.5931989]
[1730376410253,10.41378968,174.59,174.58,0.5931989]
[1730376410881,10.16280968,174.62,174.58,6.3211989]
[1730376411171,0.12549,174.61,174.58,16.48400858]
[1730376411748,10.16280968,174.63,174.58,16.48400858]
[1730376411944,10.16280968,174.63,174.58,25.07600858]
[1730376412180,0.12549,174.62,174.58,25.07600858]
[1730376412967,0.25098,174.62,174.58,25.07600858]
[1730376414561,0.25098,174.62,174.58,30.80400858]
[1730376418793,10.16280968,174.66,174.61,10.16280968]
[1730376418993,10.16280968,174.67,174.62,10.16280968]
[1730376419179,10.16280968,174.68,174.62,10.16280968]
[1730376419380,10.16280968,174.67,174.62,10.16280968]
[1730376419576,10.16280968,174.68,174.62,10.16280968]
[1730376419881,10.16280968,174.69,174.64,10.16280968]
[1730376420272,15.6195,174.75,174.65,10.16280968]
[1730376420273,10.16280968,174.71,174.65,10.16280968]
[1730376420672,10.16280968,174.71,174.66,10.16280968]
[1730376420972,10.16280968,174.71,174.67,20.0377]
[1730376421683,5.7228,174.74,174.67,20.0377]
[1730376421684,10.28829968,174.7,174.67,20.0377]
[1730376422283,10.28829968,174.7,174.67,14.3127]
[1730376422476,0.12549,174.7,174.67,24.47550968]
[1730376422685,0.25098,174.71,174.67,24.47550968]
[1730376422886,10.16280968,174.74,174.69,10.16280968]
[1730376423090,10.16280968,174.75,174.69,10.16280968]
[1730376423676,10.16280968,174.75,174.7,10.16280968]
[1730376423871,16.454,174.8,174.68,23.2782]
[1730376423872,10.16280968,174.77,174.72,10.16280968]
[1730376424279,10.16280968,174.78,174.73,10.16280968]
[1730376424600,0.1,174.83,174.69,5.7244]
[1730376424601,10.16280968,174.79,174.74,10.16280968]
[1730376425400,10.16280968,174.81,174.76,26.55060968]
[1730376425773,0.12549,174.8,174.76,26.55060968]
[1730376426395,0.12549,174.8,174.77,5.7218]
[1730376426802,0.25098,174.8,174.77,5.7218]
[1730376427324,0.12549,174.8,174.77,15.88460968]
[1730376427494,0.25098,174.81,174.77,15.88460968]
[1730376427693,10.41378968,174.81,174.77,20.0263]
[1730376428121,10.16280968,174.8,174.77,20.0263]
[1730376428300,0.12549,174.79,174.77,20.0263]
[1730376429824,0.12549,174.8,174.77,20.0263]
[1730376430153,10.16280968,174.82,174.78,10.16280968]
[1730376430340,10.16280968,174.85,174.8,10.16280968]
[1730376430627,10.16280968,174.86,174.81,10.16280968]
[1730376430944,10.16280968,174.84,174.79,10.16280968]
[1730376431236,5.7175,174.9,174.78,10.16280968]
[1730376431237,10.28829968,174.83,174.78,10.16280968]
[1730376431404,0.12549,174.83,174.79,10.16280968]
[1730376431743,10.16280968,174.8,174.77,0.85791939]
[1730376431922,10.28829968,174.78,174.77,0.85791939]
[1730376432126,10.41378968,174.78,174.77,0.85791939]
[1730376433238,16.13518968,174.78,174.77,0.85791939]
[1730376433601,56.7864284,174.78,174.77,0.85791939]
[1730376433900,0.25098,174.77,174.68,5.7247]
[1730376434111,0.12549,174.71,174.68,5.7247]
[1730376434330,0.12549,174.71,174.68,20.0365]
[1730376434710,0.12549,174.72,174.68,30.19930968]
[1730376435919,10.28829968,174.72,174.68,20.0365]
[1730376436213,10.16280968,174.75,174.7,10.16280968]
[1730376436391,0.12549,174.74,174.7,10.16280968]
[1730376436702,0.25098,174.75,174.71,10.16280968]
[1730376437287,0.12549,174.75,174.72,15.88620968]
[1730376437494,0.12549,174.77,174.72,15.88620968]
[1730376437992,0.25098,174.77,174.72,15.88620968]
[1730376438505,0.25098,174.77,174.72,30.19480968]
[1730376439277,0.12549,174.77,174.73,10.16280968]
[1730376440794,10.28829968,174.77,174.72,24.47140968]
[1730376441479,0.12549,174.75,174.72,14.3086]
[1730376442200,0.12549,174.76,174.72,14.3086]
[1730376442904,0.12549,174.76,174.72,20.032]
[1730376443095,0.12549,174.77,174.74,10.16280968]
[1730376443403,10.16280968,174.82,174.76,16.37140968]
[1730376443718,14.3947,174.89,174.76,16.37140968]
[1730376443719,10.16280968,174.84,174.78,10.16280968]
[1730376444014,10.16280968,174.85,174.8,10.16280968]
[1730376444192,0.12549,174.84,174.8,10.16280968]
[1730376445015,0.12549,174.84,174.81,5.7204]
[1730376445389,0.25098,174.84,174.81,5.7204]
[1730376445897,0.12549,174.84,174.81,5.7204]
[1730376446087,10.16280968,174.87,174.82,10.16280968]
[1730376446299,10.16280968,174.88,174.83,10.16280968]
[1730376447009,10.28829968,174.87,174.82,10.16280968]
[1730376447484,0.12549,174.86,174.83,5.7198]
[1730376447795,0.12549,174.86,174.83,20.0194]
[1730376448106,10.41378968,174.86,174.83,20.0194]
[1730376448325,0.12549,174.84,174.83,20.0194]
[1730376449183,0.12549,174.84,174.8,10.16280968]
[1730376451022,0.12549,174.85,174.82,5.7201]
[1730376451326,10.28829968,174.86,174.82,5.7201]
[1730376451531,0.12549,174.84,174.82,20.0205]
[1730376452210,0.12549,174.85,174.82,20.0205]
[1730376453001,0.12549,174.85,174.81,10.16280968]
[1730376453321,0.12549,174.86,174.82,10.16280968]
[1730376453528,0.12549,174.88,174.85,10.16280968]
[1730376453821,0.12549,174.89,174.85,10.16280968]
[1730376455126,0.12549,174.9,174.86,10.16280968]
[1730376455293,0.25098,174.9,174.86,10.16280968]
[1730376456429,0.25098,174.9,174.86,15.88130968]
[1730376456995,10.16280968,174.9,174.86,20.0156]
[1730376458202,0.12549,174.88,174.85,5.7191]
[1730376458397,0.12549,174.88,174.84,6.1886]
[1730376458398,10.16280968,174.87,174.84,6.1886]
[1730376458621,0.12549,174.86,174.83,35.5917]
[1730376460215,0.12549,174.84,174.83,14.2993]
[1730376461730,0.12549,174.84,174.83,20.0191]
[1730376461911,10.28829968,174.84,174.8,6.4594]
[1730376462100,0.12549,174.84,174.8,22.34300968]
[1730376462301,0.12549,174.86,174.82,10.16280968]
[1730376462521,10.16280968,174.9,174.84,10.16280968]
[1730376462824,10.16280968,174.9,174.85,10.16280968]
[1730376463318,10.16280968,174.91,174.86,10.16280968]
[1730376464305,10.16280968,174.91,174.87,5.7185]
[1730376464520,0.12549,174.9,174.87,5.7185]
[1730376465519,0.12549,174.9,174.87,20.0148]
[1730376465723,0.12549,174.91,174.87,35.90612489]
[1730376465928,5.7165,174.94,174.87,35.90612489]
[1730376465929,15.89132489,174.93,174.88,15.89132489]
[1730376466131,0.12549,174.92,174.88,15.89132489]
[1730376466825,15.89132489,174.93,174.88,15.89132489]
[1730376467323,0.12549,174.93,174.89,15.89132489]
[1730376467723,15.89132489,174.96,174.91,15.89132489]
[1730376468624,5.7155,174.97,174.92,15.89132489]
[1730376468625,15.89132489,174.97,174.92,15.89132489]
[1730376469431,15.89132489,174.97,174.93,15.89132489]
[1730376469638,15.89132489,174.97,174.94,5.7162]
[1730376470513,0.12549,174.96,174.94,5.7162]
[1730376470828,16.01681489,174.96,174.94,5.7162]
[1730376471030,15.89132489,174.95,174.93,14.2908]
[1730376471207,0.12549,174.94,174.92,5.7167]
[1730376471526,16.01681489,174.94,174.92,5.7167]
[1730376471908,16.01681489,174.94,174.9,20.0111]
[1730376472434,0.12549,174.94,174.9,35.90242489]
[1730376473035,0.12549,174.94,174.91,15.89132489]
[1730376473208,0.12549,174.95,174.91,15.89132489]
[1730376473609,16.01681489,174.95,174.9,35.90242489]
[1730376476932,0.12549,174.95,174.9,36.75975628]
[1730376477536,0.12549,174.95,174.91,15.89132489]
[1730376478834,0.12549,174.96,174.92,5.7168]
[1730376479513,0.12549,174.96,174.92,35.90032489]
[1730376479708,0.12549,174.98,174.94,15.89132489]
[1730376479906,15.89132489,174.99,174.94,15.89132489]
[1730376480438,15.89132489,174.99,174.94,22.40712489]
[1730376480622,15.89132489,174.99,174.95,5.7159]
[1730376481420,15.89132489,174.99,174.95,20.0056]
[1730376481620,15.89132489,174.97,174.95,20.0056]
[1730376482507,16.01681489,174.96,174.92,5.7168]
[1730376482715,16.01681489,174.94,174.91,5.7172]
[1730376483122,15.89132489,174.93,174.91,5.7172]
[1730376483314,0.12549,174.91,174.9,0.85733139]
[1730376483515,16.01681489,174.91,174.9,0.85733139]
[1730376483918,16.14230489,174.91,174.9,0.85733139]
[1730376485030,21.85950489,174.91,174.9,0.85733139]
[1730376485233,21.85950489,174.91,174.84,16.0184]
[1730376485234,0.12549,174.9,174.84,21.7378]
[1730376485432,15.89132489,174.87,174.84,21.7378]
[1730376485636,0.12549,174.86,174.84,21.7378]
[1730376487819,16.01681489,174.86,174.84,5.7194]
[1730376488040,0.12549,174.84,174.83,14.2993]
[1730376489144,16.01681489,174.84,174.83,14.2993]
[1730376489440,16.01681489,174.84,174.81,6.0036]
[1730376490557,16.01681489,174.84,174.81,11.724]
[1730376490727,15.89132489,174.83,174.79,16.4653]
[1730376490927,15.89132489,174.83,174.8,5.7208]
[1730376491131,16.01681489,174.84,174.8,5.7208]
[1730376492136,16.01681489,174.84,174.8,20.0228]
[1730376492829,0.12549,174.84,174.8,35.91412489]
[1730376494027,0.12549,174.85,174.82,5.7201]
[1730376494347,15.89132489,174.89,174.84,15.89132489]
[1730376495032,0.12549,174.89,174.85,15.89132489]
[1730376495352,15.89132489,174.9,174.85,15.89132489]
[1730376495531,0.12549,174.89,174.86,5.7188]
[1730376496244,0.25098,174.89,174.86,5.7188]
[1730376497140,0.12549,174.89,174.86,20.0159]
[1730376497456,15.89132489,174.95,174.88,15.89132489]
[1730376497637,15.89132489,174.96,174.87,59.66820889]
[1730376497946,15.89132489,174.98,174.93,15.89132489]
[1730376498157,15.89132489,174.97,174.92,15.89132489]
[1730376498924,15.89132489,174.97,174.93,5.7165]
[1730376499354,0.12549,174.96,174.93,5.7165]
[1730376501440,0.12549,174.94,174.92,14.2917]
[1730376501745,0.12549,174.94,174.92,20.0085]
[1730376502440,0.12549,174.94,174.92,35.89982489]
[1730376502634,16.14230489,174.96,174.92,20.0085]
[1730376505456,16.14230489,174.97,174.92,20.0085]
[1730376505751,16.14230489,174.97,174.92,35.89982489]
[1730376506257,15.89132489,174.99,174.94,30.18192489]
[1730376506451,15.89132489,175.0,174.95,15.89132489]
[1730376507067,15.89132489,175.02,174.97,15.89132489]
[1730376507233,0.12549,175.01,174.97,15.89132489]
[1730376507855,15.89132489,175.01,174.96,15.89132489]
[1730376508054,15.89132489,175.03,174.98,15.89132489]
[1730376508267,15.89132489,175.03,174.99,5.7146]
[1730376509343,0.12549,175.02,174.99,5.7146]
[1730376511572,16.01681489,175.02,174.99,5.7146]
[1730376512259,16.01681489,175.02,174.97,15.89132489]
[1730376512966,16.01681489,175.02,174.95,5.7159]
[1730376512967,0.12549,175.02,174.98,15.89132489]
[1730376513140,0.12549,175.02,174.98,22.51552489]
[1730376513337,0.12549,175.03,174.99,15.89132489]
[1730376513536,16.01681489,175.03,174.98,22.51552489]
[1730376514176,0.12549,175.03,174.99,15.89132489]
[1730376514335,0.12549,175.03,175.0,5.7142]
[1730376515851,0.12549,175.03,175.0,21.60552489]
[1730376516157,15.89132489,175.05,175.0,21.60552489]
[1730376516360,15.89132489,175.06,175.01,15.89132489]
[1730376516664,15.89132489,175.07,175.02,15.89132489]
[1730376517170,15.89132489,175.08,175.03,15.89132489]
[1730376517346,15.89132489,175.09,175.04,15.89132489]
[1730376518269,15.89132489,175.09,175.04,21.60392489]
[1730376518767,0.12549,175.08,175.04,21.60392489]
[1730376519764,16.01681489,175.08,175.04,5.7126]
[1730376520137,15.89132489,175.07,175.04,5.7126]
[1730376520370,0.12549,175.05,175.01,21.60522489]
[1730376520665,15.89132489,175.05,175.01,21.60522489]
[1730376521661,0.12549,175.05,175.02,15.89132489]
[1730376521967,15.89132489,175.07,175.02,15.89132489]
[1730376522167,0.12549,175.06,175.02,15.89132489]
[1730376522648,0.12549,175.07,175.03,15.89132489]
[1730376523351,0.12549,175.08,175.04,15.89132489]
[1730376523664,16.01681489,175.08,175.05,5.7126]
[1730376524567,15.89132489,175.07,175.05,5.7126]
[1730376525847,15.89132489,175.07,175.02,15.89132489]
[1730376526166,15.89132489,175.06,175.01,21.60522489]
[1730376526345,16.01681489,175.05,175.01,5.7139]
[1730376526558,0.12549,175.05,175.01,21.60522489]
[1730376526741,15.89132489,175.07,175.02,15.89132489]
[1730376526941,0.12549,175.07,175.03,15.89132489]
[1730376527138,16.01681489,175.07,175.02,39.66820889]
[1730376528063,16.01681489,175.07,175.03,5.7133]
[1730376529357,0.12549,175.07,175.03,21.60462489]
[1730376529672,15.89132489,175.08,175.03,21.60462489]
[1730376529673,15.89132489,175.11,175.06,15.89132489]
[1730376530240,15.89132489,175.11,175.07,5.712]
[1730376530467,15.89132489,175.1,175.07,5.712]
[1730376530765,15.89132489,175.11,175.07,5.712]
[1730376531271,0.12549,175.1,175.07,5.712]
[1730376532472,16.01681489,175.1,175.07,5.712]
[1730376532677,16.01681489,175.1,175.05,22.12592489]
[1730376532678,16.01681489,175.08,175.06,5.7123]
[1730376532968,15.89132489,175.08,175.05,11.9471]
[1730376533272,0.12549,175.08,175.05,11.9471]
[1730376536962,16.01681489,175.08,175.05,11.9471]
[1730376537880,0.12549,175.08,175.05,11.9471]
[1730376540575,0.12549,175.08,175.05,6.2346]
[1730376541782,10.27556477,175.08,175.05,11.9472]
[1730376541967,10.15007477,175.06,175.03,5.7133]
[1730376544076,10.15007477,175.07,175.03,5.7133]
[1730376544275,10.27556477,175.08,175.03,15.86337477]
[1730376546363,10.15007477,175.06,175.02,23.776884]
[1730376546563,10.15007477,175.06,175.02,5.7134]
[1730376547278,5.83739,175.08,175.02,5.7134]
[1730376547279,10.15007477,175.04,175.02,5.7134]
[1730376547475,10.15007477,175.03,174.97,16.51477477]
[1730376547661,10.15007477,175.03,174.98,10.15007477]
[1730376548070,10.15007477,175.04,174.99,10.15007477]
[1730376548383,0.12549,175.03,175.0,5.7142]
[1730376548682,15.9944146,175.03,175.0,5.7142]
[1730376549798,0.12549,175.03,175.0,5.7142]
[1730376550863,0.12549,175.06,175.02,15.8689246]
[1730376551063,15.8689246,175.1,175.05,15.8689246]
[1730376551266,15.8689246,175.09,175.05,15.8689246]
[1730376552274,0.12549,175.08,175.06,5.7123]
[1730376554297,0.12549,175.08,175.05,5.7126]
[1730376554476,0.12549,175.08,175.05,21.5815246]
[1730376555397,0.12549,175.09,175.05,21.5815246]
[1730376559674,15.8689246,175.1,175.06,15.8689246]
[1730376559976,15.9944146,175.1,175.06,15.8689246]
[1730376560472,0.12549,175.1,175.06,15.8689246]
[1730376561085,15.9944146,175.1,175.05,21.5815246]
[1730376562283,15.9944146,175.08,175.05,5.7126]
[1730376562487,0.12549,175.1,175.05,5.7126]
[1730376562488,15.8689246,175.07,175.05,5.7126]
[1730376563497,15.8689246,175.08,175.05,5.7126]
[1730376563875,15.8689246,175.06,175.01,15.8689246]
[1730376564075,15.8689246,175.06,175.02,5.7136]
[1730376564882,15.8689246,175.07,175.02,21.5825246]
[1730376565089,0.12549,175.06,175.02,21.5825246]
[1730376565490,0.12549,175.06,175.03,15.8689246]
[1730376567206,0.12549,175.06,175.04,5.7129]
[1730376569309,0.12549,175.06,175.02,10.15135225]
[1730376570113,0.12549,175.06,175.03,10.15135225]
[1730376570313,0.12549,175.07,175.03,10.15135225]
[1730376570601,10.15135225,175.09,175.04,15.86425225]
[1730376570789,0.12549,175.08,175.04,15.86425225]
[1730376571610,10.15135225,175.1,175.05,10.15135225]
[1730376571807,10.15135225,175.1,175.06,5.7123]
[1730376572608,10.15135225,175.07,175.03,23.776884]
[1730376572904,10.15135225,175.06,175.02,5.7136]
[1730376573404,10.15135225,175.05,175.02,5.7136]
[1730376573609,10.15135225,175.05,175.0,16.58005225]
[1730376573808,10.15135225,175.04,175.0,6.4287]
[1730376574120,10.15135225,175.03,175.0,6.4287]
[1730376574308,10.15135225,175.02,175.0,5.7142]
[1730376575403,10.15135225,175.02,174.98,5.7149]
[1730376576196,0.12549,175.02,174.98,15.86625225]
[1730376576595,10.15135225,175.04,174.99,10.15135225]
[1730376576906,0.12549,175.04,175.0,10.15135225]
[1730376577304,0.12549,175.04,175.01,5.7139]
[1730376579394,10.15135225,175.03,174.98,15.86625225]
[1730376581718,0.12549,175.04,175.0,10.15135225]
[1730376583011,10.27684225,175.04,175.01,5.7139]
[1730376584535,10.15135225,175.03,175.01,5.7139]
[1730376585300,10.15135225,175.02,174.98,23.776884]
[1730376585503,10.15135225,175.02,174.98,5.7149]
[1730376589091,0.12549,175.01,174.98,5.7149]
[1730376589824,10.27684225,175.01,174.98,5.7149]
[1730376591116,0.12549,175.01,174.98,5.7149]
[1730376593520,10.27684225,175.01,174.98,5.7149]
[1730376593707,10.27684225,175.01,174.96,16.34665225]
[1730376597325,0.12549,175.01,174.98,5.7149]
[1730376602029,0.12549,175.02,174.98,15.86625225]
[1730376603001,0.12549,175.02,174.98,10.15135225]
[1730376603501,10.40233225,175.02,174.97,39.64343625]
[1730376603812,10.15135225,174.99,174.97,5.7152]
[1730376604428,10.15135225,174.98,174.94,23.776884]
[1730376604614,10.15135225,174.97,174.94,5.7162]
[1730376605119,10.15135225,174.97,174.92,19.11854759]
[1730376605326,10.15135225,174.95,174.92,12.52814759]
[1730376605516,10.15135225,174.95,174.92,6.57406075]
[1730376606409,10.15135225,174.95,174.92,0.85726075]
[1730376607415,0.12549,174.96,174.92,0.85726075]
[1730376607416,10.15135225,174.94,174.92,0.85726075]
[1730376607629,10.27684225,174.93,174.92,0.85726075]
[1730376607811,0.12549,174.93,174.92,0.85726075]
[1730376612844,10.27684225,174.93,174.92,0.85726075]
[1730376613033,16.11883225,174.93,174.92,0.85726075]
[1730376613940,0.12549,174.92,174.84,11.9853]
[1730376614152,0.12549,174.86,174.84,11.9853]
[1730376614816,0.12549,174.86,174.84,5.7194]
[1730376615745,0.12549,174.86,174.83,5.7198]
[1730376616239,0.12549,174.86,174.83,15.87115225]
[1730376616427,0.12549,174.87,174.83,15.87115225]
[1730376616628,10.27684225,174.87,174.83,5.7198]
[1730376617444,10.15135225,174.86,174.83,5.7198]
[1730376618216,0.12549,174.85,174.83,5.7198]
[1730376620722,10.15135225,174.87,174.83,5.7198]
[1730376620927,0.12549,174.87,174.83,15.87115225]
[1730376621944,0.12549,174.87,174.84,5.7195]
[1730376623240,0.12549,174.88,174.84,5.7195]
[1730376625029,0.12549,174.88,174.84,15.87085225]
[1730376625746,0.12549,174.88,174.84,10.15135225]
[1730376626250,0.25098,174.89,174.84,10.15135225]
[1730376626949,0.12549,174.89,174.84,10.15135225]
[1730376628040,10.15135225,174.89,174.84,10.15135225]
[1730376628251,0.12549,174.88,174.84,10.15135225]
[1730376630555,10.27684225,174.88,174.83,15.87115225]
[1730376631633,10.15135225,174.87,174.83,5.7198]
[1730376632657,0.12549,174.88,174.84,15.87085225]
[1730376634167,0.12549,174.88,174.84,10.15135225]
[1730376636147,10.27684225,174.88,174.84,5.7195]
[1730376636348,10.27684225,174.86,174.82,6.57776076]
[1730376636533,10.27684225,174.84,174.82,6.57776076]
[1730376637031,10.27684225,174.84,174.82,0.85766076]
[1730376637233,10.27684225,174.83,174.82,0.85766076]
[1730376638771,0.12549,174.83,174.82,0.85766076]
[1730376649194,10.15135225,174.88,174.82,16.72911301]
[1730376649467,10.15135225,174.89,174.84,10.15135225]
[1730376650053,0.12549,174.88,174.84,10.15135225]
[1730376650248,0.12549,174.88,174.85,5.7191]
[1730376650748,10.15135225,174.9,174.85,30.16835225]
[1730376650952,10.15135225,174.93,174.88,10.15135225]
[1730376651153,10.15135225,174.94,174.88,10.15135225]
[1730376651368,5.65978714,174.96,174.86,22.8675]
[1730376651369,10.15135225,174.95,174.9,10.15135225]
[1730376651670,0.12549,174.94,174.9,10.15135225]
[1730376652575,0.12549,174.94,174.92,10.15135225]
[1730376652762,0.12549,174.95,174.92,10.15135225]
[1730376652960,15.3104,174.99,174.94,10.15135225]
[1730376652961,10.15135225,174.99,174.94,10.15135225]
[1730376653567,0.12549,174.98,174.94,10.15135225]
[1730376654358,0.25098,174.98,174.94,10.15135225]
[1730376654548,0.25098,174.98,174.94,15.86745225]
[1730376654763,10.15135225,175.0,174.95,10.15135225]
[1730376654965,15.86535225,175.01,174.96,10.15135225]
[1730376655577,0.12549,175.0,174.96,10.15135225]
[1730376655978,0.25098,175.0,174.96,15.86685225]
[1730376659471,10.40233225,175.0,174.96,15.86685225]
[1730376659975,10.40233225,175.0,174.94,20.3573]
[1730376659976,10.40233225,175.0,174.95,15.86725225]
[1730376660379,0.12549,174.98,174.95,5.7159]
[1730376660972,0.12549,174.99,174.95,30.15695225]
[1730376661667,10.15135225,175.03,174.98,10.15135225]
[1730376661876,10.15135225,175.03,174.94,6.0667]
[1730376661877,10.15135225,175.05,175.0,10.15135225]
[1730376662065,0.12549,175.04,175.0,10.15135225]